Workbook

Sheet All CMF Coeff (hidden)
A1: Obs | B1: Cat | C1: RT | D1: Category | E1: Crash type | F1: Parameter | G1: Estimate
A2: 1 | B2: 1 | C2: R2U | D2: Straight Grades | E2: FI | F2: Grade | G2: 0.044
A3: 2 | B3: 1 | C3: R2U | D3: Straight Grades | E3: FI | F3: ln(2x5730/R) | G3: 0.19
A4: 3 | B4: 1 | C4: R2U | D4: Straight Grades | E4: FI | F4: (1/R)x(1/Lc) | G4: 4.52
A5: 4 | B5: 1 | C5: R2U | D5: Straight Grades | E5: PDO | F5: Grade | G5: 0.04
A6: 5 | B6: 1 | C6: R2U | D6: Straight Grades | E6: PDO | F6: ln(2x5730/R) | G6: 0.13
A7: 6 | B7: 1 | C7: R2U | D7: Straight Grades | E7: PDO | F7: (1/R)x(1/Lc) | G7: 3.8
A8: 7 | B8: 2 | C8: R2U | D8: Type 1 Crest | E8: FI | F8: (5730/R)xA | G8: 0.0088
A9: 8 | B9: 2 | C9: R2U | D9: Type 1 Crest | E9: PDO | F9: (5730/R)xA | G9: 0.0046
A10: 9 | B10: 3 | C10: R2U | D10: Type 1 Sag | E10: FI | F10: A/LVC | G10: 10.51
A11: 10 | B11: 3 | C11: R2U | D11: Type 1 Sag | E11: FI | F11: (5730/R)xA | G11: 0.011
A12: 11 | B12: 3 | C12: R2U | D12: Type 1 Sag | E12: PDO | F12: A/LVC | G12: 8.62
A13: 12 | B13: 3 | C13: R2U | D13: Type 1 Sag | E13: PDO | F13: (5730/R)xA | G13: 0.01
A14: 13 | B14: 4 | C14: R2U | D14: Type 2 Crest | E14: FI | F14: ln(2x5730/R) | G14: 0.2
A15: 14 | B15: 4 | C15: R2U | D15: Type 2 Crest | E15: PDO | F15: ln(2x5730/R) | G15: 0.1
A16: 15 | B16: 5 | C16: R2U | D16: Type 2 Sag | E16: FI | F16: ln(2x5730/R) | G16: 0.188
A17: 16 | B17: 5 | C17: R2U | D17: Type 2 Sag | E17: PDO | F17: (5730/R)xA | G17: 0.022
C43: Adapted from: American Association of State Highway and Transportation Officials, A Policy on Geometric Design of Highways and Streets, (2011).

Sheet Instructions

Sheet Tgt StraightGrade
B1: Rural Two-Lane Roads: CMFs for Tangents on Straight Grades | T1: =MAX(B:B) -> 1
B3: Parameter | C3: Description | D3: Unit | E3: Value
B4: G | C4: Grade | D4: Percent | E4: -5 | F4: (1 percent is entered as 1.0)
B5: PFI | C5: Proportion of FI crashes | D5: None | E5: 0.321 | F5: (default is 0.321)
B6: PPDO | C6: Proportion of PDO crashes | D6: None | E6: =1-E5 -> 0.679
Z8: Tangent Analysis
B12: Rural Two-Lane Roads: CMFs for Tangents on Straight Grades
B13: Record | C13: Geometrics | E13: Grade (Percent) | F13: PFI | G13: PPDO | H13: CMFFI | I13: CMFPDO | J13: CMFTOT
C14: Horizontal | D14: Vertical | N14: Grade (used) | Z14: tangent analysis indicator | AA14: FI Coef1 | AB14: PDO Coef1 | AC14: CMFFI | AD14: CMFPDO
B15: 1 | C15: Tangent | D15: =IF(N15>0,"Straight grade","Level") -> Straight grade | E15: =E$4 -> -5 | F15: =E$5 -> 0.321 | G15: =E$6 -> 0.679 | H15: =AC15 -> 1.246076731 | I15: =AD15 -> 1.221402758 | J15: =(H15-1)*F15+(I15-1)*G15+1 -> 1.229323103 | N15: =IF(ABS($E$4)<1,0,ABS($E$4)) -> 5 | Z15: =1 -> 1 | AA15: ='All CMF Coeff'!$G$2 -> 0.044 | AB15: ='All CMF Coeff'!$G$5 -> 0.04 | AC15: =Z15*EXP(AA15*ABS(N15)) -> 1.246076731 | AD15: =Z15*EXP(AB15*ABS(N15)) -> 1.221402758

Sheet HCurve StraightGrade
B1: Rural Two-Lane Roads: CMFs for Horizontal Curves on Straight Grades | T1: =MAX(B:B) -> 1
B3: Parameter | C3: Description | D3: Unit | E3: Value
B4: G | C4: Grade | D4: Percent | E4: -5 | F4: (1 percent is entered as 1.0)
B5: R | C5: Curve radius | D5: ft | E5: 12000
B6: LC | C6: Horizontal curve length | D6: mi | E6: 5
B7: PFI | C7: Proportion of FI crashes | D7: None | E7: 0.321 | F7: (default is 0.321)
B8: PPDO | C8: Proportion of PDO crashes | D8: None | E8: =1-E7 -> 0.679 | N8: Horizontal Curve Analysis | AB8: Tangent Analysis
B12: Rural Two-Lane Roads: CMFs for Horizontal Curves on Straight Grades
B13: Record | C13: Geometrics | E13: Grade (Percent) | F13: R (ft) | G13: LC (mi) | H13: PFI | I13: PPDO | J13: CMFFI | K13: CMFPDO | L13: CMFTOT
C14: Horizontal | D14: Vertical | N14: Grade (used) | O14: Curve Radius (used) | P14: Curve length (mi) | Q14: FI Coef1 | R14: FI Coef2 | S14: FI Coef3 | T14: PDO Coef1 | U14: PDO Coef2 | V14: PDO Coef3 | W14: CMFFI | X14: CMFPDO | AA14: Grade | AB14: tangent analysis indicator | AC14: FI Coef1 | AD14: PDO Coef1 | AE14: CMFFI | AF14: CMFPDO
B15: 1 | C15: Horizontal curve | D15: =IF(E15>0,"Straight grade","Level") -> Level | E15: =E$4 -> -5 | F15: =E$5 -> 12000 | G15: =E$6 -> 5 | H15: =E$7 -> 0.321 | I15: =E$8 -> 0.679 | J15: =IFERROR(W15,AE15) -> 1.246076731 | K15: =IFERROR(X15,AF15) -> 1.221402758 | L15: =(J15-1)*H15+(K15-1)*I15+1 -> 1.229323103 | N15: =IF(ISNA(AB15),IF($E$4<1,0,$E$4),NA()) ->  | O15: =IF(F15<100,100,IF(F15>=11460,NA(),F15)) ->  | P15: =G15 -> 5 | Q15: ='All CMF Coeff'!$G$2 -> 0.044 | R15: ='All CMF Coeff'!$G$3 -> 0.19 | S15: ='All CMF Coeff'!$G$4 -> 4.52 | T15: ='All CMF Coeff'!$G$5 -> 0.04 | U15: ='All CMF Coeff'!$G$6 -> 0.13 | V15: ='All CMF Coeff'!$G$7 -> 3.8 | W15: =EXP(Q15*ABS(N15)+R15*LN(2*5730/O15)+S15*1/O15/P15) ->  | X15: =EXP(T15*N15+U15*LN(2*5730/O15)+V15*1/O15/P15) ->  | AA15: =IF(ABS($E$4)<1,0,ABS($E$4)) -> 5 | AB15: =IF($E$5>11460,1,NA()) -> 1 | AC15: ='All CMF Coeff'!$G$2 -> 0.044 | AD15: ='All CMF Coeff'!$G$5 -> 0.04 | AE15: =AB15*EXP(AC15*ABS(AA15)) -> 1.246076731 | AF15: =AB15*EXP(AD15*ABS(AA15)) -> 1.221402758

Sheet Tgt VCurve
B1: Rural Two-Lane Roads: CMFs for Tangents at Vertical Curves | T1: =MAX(B:B) -> 1
B3: Parameter | C3: Description | D3: Unit | E3: Value
B4: G1 | C4: Initial grade (include sign) | D4: Percent | E4: 2 | F4: (1 percent is entered as 1.0)
B5: G2 | C5: Final grade (include sign) | D5: Percent | E5: 3
B6: LVC | C6: Vertical curve length | D6: ft | E6: 600
B7: PFI | C7: Proportion of FI crashes | D7: None | E7: 0.321 | F7: (default is 0.321)
B8: PPDO | C8: Proportion of PDO crashes | D8: None | E8: =1-E7 -> 0.679 | Q8: Type 1 Sag | Z8: Type 1 Sag | AE8: Type 1 Crest | AI8: Type 2 Crest | AM8: Type 2 Sag
Q9: (tangent analysis) | Z9: (level tangent analysis)
Q10: IF(g1<0 and g2>0 and LVC/A<=1000 and either [abs(g1)>=1 or abs(g2)>=1]) | Z10: IF(g1<0 and g2>0 and either [LVC/A>1000 or both {abs(g1)<1 and abs(g2)<1}])
B12: Rural Two-Lane Roads: CMFs for Tangents at Vertical Curves
B13: Record | C13: Geometrics | E13: Initial Grade (Percent) | F13: Final Grade (Percent) | G13: A (Percent) | H13: LVC (ft) | I13: K (Lvc/A) | J13: PFI | K13: PPDO | L13: CMFFI | M13: CMFPDO | N13: CMFTOT
C14: Horizontal | D14: Vertical | Q14: analysis indicator | R14: A | S14: Lvc | T14: FI Coef | U14: PDO Ccoef | V14: CMFFI | W14: CMFPDO | Z14: analysis indicator | AA14: CMFFI | AB14: CMFPDO | AE14: analysis indicator | AF14: CMFFI | AG14: CMFPDO | AI14: analysis indicator | AJ14: CMFFI | AK14: CMFPDO | AM14: analysis indicator | AN14: CMFFI | AO14: CMFPDO
B15: 1 | C15: Horizontal curve | D15: =IF(ISNUMBER(Q15),$Q$8,IF(ISNUMBER(Z15),$Z$8,IF(ISNUMBER(AE15),$AE$8,IF(ISNUMBER(AI15),$AI$8,IF(ISNUMBER(AM15),$AM$8,NA()))))) -> Type 2 Sag | E15: =$E$4 -> 2 | F15: =$E$5 -> 3 | G15: =ABS(E15-F15) -> 1 | H15: =$E$6 -> 600 | I15: =H15/G15 -> 600 | J15: =E$7 -> 0.321 | K15: =E$8 -> 0.679 | L15: =IF(ISNUMBER(Q15),V15,IF(ISNUMBER(Z15),AA15,IF(ISNUMBER(AE15),AF15,IF(ISNUMBER(AI15),AJ15,IF(ISNUMBER(AM15),AN15,NA()))))) -> 1 | M15: =IF(ISNUMBER(Q15),W15,IF(ISNUMBER(Z15),AB15,IF(ISNUMBER(AE15),AG15,IF(ISNUMBER(AI15),AK15,IF(ISNUMBER(AM15),AO15,NA()))))) -> 1 | N15: =(L15-1)*J15+(M15-1)*K15+1 -> 1 | Q15: =IF(AND(E15<0,F15>0,H15/G15<=1000,OR(ABS(E15)>=1,ABS(F15)>=1)),1,NA()) ->  | R15: =G15 -> 1 | S15: =H15 -> 600 | T15: ='All CMF Coeff'!$G$10 -> 10.51 | U15: ='All CMF Coeff'!$G$12 -> 8.62 | V15: =Q15*EXP(T15*R15/S15) ->  | W15: =Q15*EXP(U15*R15/S15) ->  | Z15: =IF(AND(E15<0,F15>0,OR(H15/G15>1000,AND(ABS(E15)<1,ABS(F15)<1))),1,NA()) ->  | AA15: =IF(ISNUMBER(Z15),1,NA()) ->  | AB15: =IF(ISNUMBER(Z15),1,NA()) ->  | AE15: =IF(AND(E15>0,F15<0),1,NA()) ->  | AF15: =IF(ISNUMBER(AE15),1,NA()) ->  | AG15: =IF(ISNUMBER(AE15),1,NA()) ->  | AI15: =IF(OR(AND(E15>0,F15>=0,E15>F15),AND(E15<=0,F15<0,ABS(E15)<ABS(F15))),1,NA()) ->  | AJ15: =IF(ISNUMBER(AI15),1,NA()) ->  | AK15: =IF(ISNUMBER(AI15),1,NA()) ->  | AM15: =IF(OR(AND(E15>=0,F15>0,E15<F15),AND(E15<0,F15<=0,ABS(E15)>ABS(F15))),1,NA()) -> 1 | AN15: =IF(ISNUMBER(AM15),1,NA()) -> 1 | AO15: =IF(ISNUMBER(AM15),1,NA()) -> 1

Sheet HCurve VCurve
B1: Rural Two-Lane Roads: CMFs for Horizontal Curves at Vertical Curves | T1: =MAX(B:B) -> 1
B3: Parameter | C3: Description | D3: Unit | E3: Value
B4: G1 | C4: Initial grade (include sign) | D4: Percent | E4: -3 | F4: (1 percent is entered as 1.0)
B5: G2 | C5: Final grade (include sign) | D5: Percent | E5: 2
B6: R | C6: Curve radius | D6: ft | E6: 1430
B7: LC | C7: Horizontal curve length | D7: mi | E7: 0.12
B8: LVC | C8: Vertical curve length | D8: ft | E8: 600 | U8: Type 1 Crest | AK8: Type 1 Crest | AO8: Type 1 Crest | AY8: Type 1 Sag | BO8: Type 1 Sag | BW8: Type 1 Sag | CI8: Type 2 Crest | CJ8: Type 2 Crest | DA8: Type 2 Crest | DF8: Type 2 Crest | DO8: Type 2 Sag | DP8: Type 2 Sag | EH8: Type 2 Sag | EM8: Type 2 Sag
B9: PFI | C9: Proportion FI crashes | D9: None | E9: 0.321 | F9: (default is 0.321) | U9: (h curve, straight grade analysis) | AK9: (tangent type 1 crest) | AO9: normal | AY9: (h curve, straight grade analysis) | BO9: (tangent type 1 sag) | BW9: normal | CI9: [all] | CJ9: (h curve, straight grade analysis) | DA9: (tangent at Type 2 crest) | DF9: normal | DO9: [all] | DP9: (h curve, straight grade analysis) | EH9: (tangent analysis) | EM9: normal
B10: PPDO | C10: Proportion PDO crashes | D10: None | E10: =1-E9 -> 0.679 | U10: IF(g1 > 0 and g2 <0 and R <11460 and either[ABS(g1) < 1 and ABS(g2) < 1] or [K>1000] | AK10: IF(g1>0 and g2<0 and R>=11460) | AO10: IF(g1>0 and g2<0 and R<11460 and K<1000 and either [ABS(g1) >= 1 or ABS(g2) >= 1]) | AY10: IF(g1<0 and g2>0 and R<11460 and either [ABS(g1) < 1 and ABS(g2) < 1] or [K>1000]) | BO10: IF(g1<0 and g2>0 and R>=11460) | BW10: IF(g1<0 and g2>0 and R<11460 and K<1000 and either [ABS(g1) >= 1 or ABS(g2) >= 1] and K<=1000) | CI10: IF(either [g1>0 and g2>=0 and g1>g2] or [E15<=0 and F15<0 and ABS(g1)<ABS(g2)] | CJ10: IF(A<1 or K>1000) | DA10: if(R>=11460) | DF10: if(A>=1 and K<=1000 and R <11460) | DO10: IF either [g1>=0 and g2>0 and g1<g2] or [g1<0 and g2<=0 and ABS(g1)>ABS(g2)] | DP10: if [R<11460 and A<1] or [R<11460 and LVC/A>1000] | EH10: if R>=11460 | EM10: if R<11460 and A>=1 and LVC/A<=1000
B12: Rural Two-Lane Roads: CMFs for Horizontal Curves at Vertical Curves
B13: Record | C13: Geometrics | E13: Initial Grade (Percent) | F13: Final Grade (Percent) | G13: A (Percent) | H13: R (ft) | I13: LC (mi) | J13: LVC (ft) | K13: K (Lvc/A) | L13: PFI | M13: PPDO | N13: CMFFI | O13: CMFPDO | P13: CMFTOT
C14: Horizontal | D14: Vertical | R14: Curve Radius (used) | U14: analysis indicator | V14: Grade 1 | W14: Grade 2 | X14: Grade (used) | Y14: K | Z14: R | AA14: Curve length (mi) | AB14: FI Coef1 | AC14: FI Coef2 | AD14: FI Coef3 | AE14: PDO Coef1 | AF14: PDO Coef2 | AG14: PDO Coef3 | AH14: CMFFI | AI14: CMFPDO | AK14: analysis indicator | AL14: CMFFI | AM14: CMFPDO | AO14: analysis indicator | AP14: R | AQ14: Grade 1 | AR14: Grade 2 | AS14: A | AT14: FI coef | AU14: PDO coef | AV14: CMFFI | AW14: CMFPDO | AY14: analysis indicator | AZ14: Grade 1 | BA14: Grade 2 | BB14: Grade (used) | BC14: K | BD14: R | BE14: Lvc | BF14: FI Coef1 | BG14: FI Coef2 | BH14: FI Coef3 | BI14: PDO Coef1 | BJ14: PDO Coef2 | BK14: PDO Coef3 | BL14: CMFFI | BM14: CMFPDO | BO14: analysis indicator | BP14: A | BQ14: Lvc | BR14: FI Coef | BS14: PDO Ccoef | BT14: CMFFI | BU14: CMFPDO | BW14: analysis indicator | BX14: K | BY14: A | BZ14: Lvc | CA14: R | CB14: FI Coef 1 | CC14: FI Coef 2 | CD14: PDO Coef 1 | CE14: PDO Coef 2 | CF14: CMFFI | CG14: CMFPDO | CI14: analysis indicator 1 | CJ14: analysis indicator 2 | CK14: A | CL14: Grade 1 | CM14: Grade 2 | CN14: Grade (used) | CO14: K | CP14: R | CQ14: Curve length (mi) | CR14: FI Coef1 | CS14: FI Coef2 | CT14: FI Coef3 | CU14: PDO Coef1 | CV14: PDO Coef2 | CW14: PDO Coef3 | CX14: CMFFI | CY14: CMFPDO | DA14: analysis indicator 2 | DB14: R | DC14: CMFFI | DD14: CMFPDO | DF14: analysis indicator 2 | DG14: A | DH14: K | DI14: R | DJ14: FI Coef | DK14: PDO Coef | DL14: CMFFI | DM14: CMFPDO | DO14: analysis indicator | DP14: analysis indicator 2 | DQ14: A | DR14: LVC | DS14: Grade 1 | DT14: Grade 2 | DU14: Grade (used) | DV14: K | DW14: R | DX14: Curve length (mi) | DY14: FI Coef1 | DZ14: FI Coef2 | EA14: FI Coef3 | EB14: PDO Coef1 | EC14: PDO Coef2 | ED14: PDO Coef3 | EE14: CMFFI | EF14: CMFPDO | EH14: analysis indicator 2 | EI14: R | EJ14: CMFFI | EK14: CMFPDO | EM14: analysis indicator 2 | EN14: R | EO14: A | EP14: LVC | EQ14: FI coef | ER14: PDO coef | ES14: CMFFI | ET14: CMFPDO
B15: 1 | C15: Horizontal curve | D15: =IF(ISNUMBER(U15),$U$8,IF(ISNUMBER(AK15),$AK$8,IF(ISNUMBER(AO15),$AO$8,IF(ISNUMBER(AY15),$AY$8,IF(ISNUMBER(BO15),$BO$8,IF(ISNUMBER(BW15),$BW$8,IF(ISNUMBER(CI15),$CI$8,IF(ISNUMBER(DA15),$DA$8,IF(ISNUMBER(DF15),$DF$8,IF(ISNUMBER(DP15),$DP$8,IF(ISNUMBER(EH15),$EH$8,IF(ISNUMBER(EM15),$EM$8,NA())))))))))))) -> Type 1 Sag | E15: =$E$4 -> -3 | F15: =$E$5 -> 2 | G15: =ABS(E15-F15) -> 5 | H15: =E$6 -> 1430 | I15: =E$7 -> 0.12 | J15: =$E$8 -> 600 | K15: =J15/G15 -> 120 | L15: =E$9 -> 0.321 | M15: =E$10 -> 0.679 | N15: =IF(ISNUMBER(U15),AH15,IF(ISNUMBER(AK15),AL15,IF(ISNUMBER(AO15),AV15,IF(ISNUMBER(AY15),BL15,IF(ISNUMBER(BO15),BT15,IF(ISNUMBER(BW15),CF15,IF(ISNUMBER(CJ15),CX15,IF(ISNUMBER(DA15),DC15,IF(ISNUMBER(DF15),DL15,IF(ISNUMBER(DP15),EE15,IF(ISNUMBER(EH15),EJ15,IF(ISNUMBER(EM15),ES15,NA())))))))))))) -> 1.360657377 | O15: =IF(ISNUMBER(U15),AI15,IF(ISNUMBER(AK15),AM15,IF(ISNUMBER(AO15),AW15,IF(ISNUMBER(AY15),BM15,IF(ISNUMBER(BO15),BU15,IF(ISNUMBER(BW15),CG15,IF(ISNUMBER(CJ15),CY15,IF(ISNUMBER(DA15),DD15,IF(ISNUMBER(DF15),DM15,IF(ISNUMBER(DP15),EF15,IF(ISNUMBER(EH15),EK15,IF(ISNUMBER(EM15),ET15,NA())))))))))))) -> 1.312827205 | P15: =(N15-1)*L15+(O15-1)*M15+1 -> 1.328180691 | R15: =IF(H15<100,100,H15) -> 1430 | U15: =IF(AND(E15>0,F15<0,R15<11460,OR(AND(ABS(V15) < 1, ABS(W15) < 1),Y15>1000)),1,NA()) ->  | V15: =E15 -> -3 | W15: =F15 -> 2 | X15: =0 -> 0 | Y15: =K15 -> 120 | Z15: =R15 -> 1430 | AA15: =I15 -> 0.12 | AB15: ='All CMF Coeff'!$G$2 -> 0.044 | AC15: ='All CMF Coeff'!$G$3 -> 0.19 | AD15: ='All CMF Coeff'!$G$4 -> 4.52 | AE15: ='All CMF Coeff'!$G$5 -> 0.04 | AF15: ='All CMF Coeff'!$G$6 -> 0.13 | AG15: ='All CMF Coeff'!$G$7 -> 3.8 | AH15: =U15*EXP(AB15*ABS(X15)+AC15*LN(2*5730/Z15)+AD15*1/Z15/AA15) ->  | AI15: =U15*EXP(AE15*X15+AF15*LN(2*5730/Z15)+AG15*1/Z15/AA15) ->  | AK15: =IF(AND(E15>0,F15<0,H15>=11460),1,NA()) ->  | AL15: =IF(ISNUMBER(AK15),1,NA()) ->  | AM15: =IF(ISNUMBER(AK15),1,NA()) ->  | AO15: =IF(AND(E15>0,F15<0,H15<11460,K15<1000,OR(ABS(E15) >= 1, ABS(F15) >= 1)),1,NA()) ->  | AP15: =R15 -> 1430 | AQ15: =E15 -> -3 | AR15: =F15 -> 2 | AS15: =ABS(AQ15-AR15) -> 5 | AT15: ='All CMF Coeff'!$G$8 -> 0.0088 | AU15: ='All CMF Coeff'!$G$9 -> 0.0046 | AV15: =AO15*EXP(AT15*5730/AP15*AS15) ->  | AW15: =AO15*EXP(AU15*5730/AP15*AS15) ->  | AY15: =IF(AND(E15<0,F15>0,R15<11460,OR(AND(ABS(E15) < 1, ABS(F15) < 1),K15>1000)),1,NA()) ->  | AZ15: =E15 -> -3 | BA15: =F15 -> 2 | BB15: =0 -> 0 | BC15: =K15 -> 120 | BD15: =R15 -> 1430 | BE15: =I15 -> 0.12 | BF15: ='All CMF Coeff'!$G$2 -> 0.044 | BG15: ='All CMF Coeff'!$G$3 -> 0.19 | BH15: ='All CMF Coeff'!$G$4 -> 4.52 | BI15: ='All CMF Coeff'!$G$5 -> 0.04 | BJ15: ='All CMF Coeff'!$G$6 -> 0.13 | BK15: ='All CMF Coeff'!$G$7 -> 3.8 | BL15: =AY15*EXP(BF15*ABS(BB15)+BG15*LN(2*5730/BD15)+BH15*1/BD15/BE15) ->  | BM15: =AY15*EXP(BI15*BB15+BJ15*LN(2*5730/BD15)+BK15*1/BD15/BE15) ->  | BO15: =IF(AND(E15<0,F15>0,R15>=11460),1,NA()) ->  | BP15: =G15 -> 5 | BQ15: =J15 -> 600 | BR15: ='All CMF Coeff'!$G$10 -> 10.51 | BS15: ='All CMF Coeff'!$G$12 -> 8.62 | BT15: =BO15*EXP(BR15*BP15/BQ15) ->  | BU15: =BO15*EXP(BS15*BP15/BQ15) ->  | BW15: =IF(AND(E15<0,F15>0,H15<11460,OR(ABS(E15) >= 1, ABS(F15) >= 1), BX15<=1000),1,NA()) -> 1 | BX15: =K15 -> 120 | BY15: =G15 -> 5 | BZ15: =J15 -> 600 | CA15: =R15 -> 1430 | CB15: ='All CMF Coeff'!$G$10 -> 10.51 | CC15: ='All CMF Coeff'!$G$11 -> 0.011 | CD15: ='All CMF Coeff'!$G$12 -> 8.62 | CE15: ='All CMF Coeff'!$G$13 -> 0.01 | CF15: =BW15*EXP(CB15*BY15/BZ15+CC15*5730/CA15*BY15) -> 1.360657377 | CG15: =BW15*EXP(CD15*BY15/BZ15+CE15*5730/CA15*BY15) -> 1.312827205 | CI15: =IF(OR(AND(E15>0,F15>=0,E15>F15),AND(E15<=0,F15<0,ABS(E15)<ABS(F15))),1,NA()) ->  | CJ15: =IF(AND(CI15=1,OR(CK15<1,CO15>1000)),1,NA()) ->  | CK15: =G15 -> 5 | CL15: =E15 -> -3 | CM15: =F15 -> 2 | CN15: =(CL15+CM15)/2 -> -0.5 | CO15: =K15 -> 120 | CP15: =R15 -> 1430 | CQ15: =I15 -> 0.12 | CR15: ='All CMF Coeff'!$G$2 -> 0.044 | CS15: ='All CMF Coeff'!$G$3 -> 0.19 | CT15: ='All CMF Coeff'!$G$4 -> 4.52 | CU15: ='All CMF Coeff'!$G$5 -> 0.04 | CV15: ='All CMF Coeff'!$G$6 -> 0.13 | CW15: ='All CMF Coeff'!$G$7 -> 3.8 | CX15: =CJ15*EXP(CR15*ABS(CN15)+CS15*LN(2*5730/CP15)+CT15*1/CP15/CQ15) ->  | CY15: =CJ15*EXP(CU15*CN15+CV15*LN(2*5730/CP15)+CW15*1/CP15/CQ15) ->  | DA15: =IF(AND(CI15=1,DB15>=11460),1,NA()) ->  | DB15: =R15 -> 1430 | DC15: =IF(ISNUMBER(DA15),1,NA()) ->  | DD15: =IF(ISNUMBER(DA15),1,NA()) ->  | DF15: =IF(AND(CI15=1,DG15>=1,DH15<=1000,DI15<11460),1,NA()) ->  | DG15: =G15 -> 5 | DH15: =K15 -> 120 | DI15: =R15 -> 1430 | DJ15: ='All CMF Coeff'!$G$14 -> 0.2 | DK15: ='All CMF Coeff'!$G$15 -> 0.1 | DL15: =DF15*EXP(DJ15*LN(2*5730/DI15)) ->  | DM15: =DF15*EXP(DK15*LN(2*5730/DI15)) ->  | DO15: =IF(OR(AND(E15>=0,F15>0,E15<F15),AND(E15<0,F15<=0,ABS(E15)>ABS(F15))),1,NA()) ->  | DP15: =IF(AND(DO15=1,DW15<11460,OR(DQ15<1,DR15/DQ15>1000)),1,NA()) ->  | DQ15: =G15 -> 5 | DR15: =J15 -> 600 | DS15: =E15 -> -3 | DT15: =F15 -> 2 | DU15: =(DS15+DT15)/2 -> -0.5 | DV15: =K15 -> 120 | DW15: =R15 -> 1430 | DX15: =I15 -> 0.12 | DY15: ='All CMF Coeff'!$G$2 -> 0.044 | DZ15: ='All CMF Coeff'!$G$3 -> 0.19 | EA15: ='All CMF Coeff'!$G$4 -> 4.52 | EB15: ='All CMF Coeff'!$G$5 -> 0.04 | EC15: ='All CMF Coeff'!$G$6 -> 0.13 | ED15: ='All CMF Coeff'!$G$7 -> 3.8 | EE15: =DP15*EXP(DY15*ABS(DU15)+DZ15*LN(2*5730/DW15)+EA15*1/DW15/DX15) ->  | EF15: =DP15*EXP(EB15*DU15+EC15*LN(2*5730/DW15)+ED15*1/DW15/DX15) ->  | EH15: =IF(AND(DO15=1,EI15>=11460),1,NA()) ->  | EI15: =R15 -> 1430 | EJ15: =IF(ISNUMBER(EH15),1,NA()) ->  | EK15: =IF(ISNUMBER(EH15),1,NA()) ->  | EM15: =IF(AND(DO15=1,EN15<11460,EO15>=1,EP15<=1000),1,NA()) ->  | EN15: =R15 -> 1430 | EO15: =G15 -> 5 | EP15: =J15 -> 600 | EQ15: ='All CMF Coeff'!$G$16 -> 0.188 | ER15: ='All CMF Coeff'!$G$17 -> 0.022 | ES15: =EM15*EXP(EQ15*LN(2*5730/EN15)) ->  | ET15: =EM15*EXP(ER15*5730/EN15*EO15) -> 
